fUST/lending_fUST_20250824
["ID","MTS","AMOUNT","RATE_DAILY","PERIOD"]
[381076151,1756003843609,-151.0,0.00029475,7]
[381076153,1756003843619,-3193.46190787,0.00029475,20]
[381076154,1756003843631,-914.99639995,0.00029475,20]
[381076155,1756003843643,-862.42,0.00029475,20]
[381076157,1756003843654,-1920.273055,0.00029475,20]
[381076158,1756003843666,-586.81679521,0.00029475,20]
[381076161,1756003843751,-151.0,0.0002899,7]
[381076163,1756003843761,-6.76859154,0.00029475,20]
[381076172,1756003979997,737.17398947,0.00021627,2]
[381076173,1756003980462,737.17398967,0.000199,2]
[381076174,1756003981282,-404.66014415,0.00023353,2]
[381076175,1756003983314,-332.51384532,0.00023353,2]
[381076176,1756003992565,826.48701331,0.00025,3]
[381076178,1756004150776,667.65984058,0.000199,2]
[381076179,1756004150890,667.65984039,0.00021627,2]
[381076180,1756004152037,-151.90456186,0.00023353,2]
[381076181,1756004155732,-168.62254977,0.00023353,2]
[381076182,1756004156361,151.90456186,0.00025,3]
[381076183,1756004157360,-304.52364376,0.00023353,2]
[381076184,1756004159493,-42.609085,0.00023353,2]
[381076185,1756004171890,639.90678717,0.00025,3]
[381076188,1756004319090,639.76634003,0.000199,2]
[381076189,1756004319635,639.76634003,0.00021627,2]
[381076190,1756004319784,-220.0,0.00023353,2]
[381076191,1756004321872,-214.26673267,0.00023353,2]
[381076192,1756004324020,-205.49960736,0.00023353,2]
[381076193,1756004334915,4062.14610587,0.00025,3]
[381076195,1756004487140,605.78567599,0.00021627,2]
[381076196,1756004488409,-158.60383603,0.00023353,2]
[381076197,1756004489994,-236.91099613,0.00023353,2]
[381076198,1756004492996,605.78567614,0.000199,2]
[381076199,1756004493291,-210.27084383,0.00023353,2]
[381076200,1756004498958,1567.29382242,0.00025,3]
[381076201,1756004527371,158.0,0.000233,3]
[381076202,1756004528034,158.0,0.000233,3]
[381076203,1756004539578,158.0,0.00025,3]
[381076204,1756004551262,158.0,0.00025,4]
[381076205,1756004644285,158.0,0.00025,4]
[381076206,1756004659362,1170.85017714,0.000199,2]
[381076207,1756004660122,1170.85017705,0.00021627,2]
[381076208,1756004660403,-252.28652949,0.00023353,2]
[381076209,1756004662607,-224.6679322,0.00023353,2]
[381076210,1756004665690,-155.34809731,0.00023353,2]
[381076211,1756004667513,-180.13495507,0.00023353,2]
[381076212,1756004675426,-192.65190269,0.00023353,2]
[381076213,1756004676949,-162.58216132,0.00023353,2]
[381076214,1756004677216,1284.90391617,0.00025,3]
[381076215,1756004680248,-3.17859897,0.00023353,2]
[381076216,1756004693118,355.23406401,0.00025,3]
[381076218,1756004840885,1088.21023048,0.000199,2]
[381076219,1756004841908,1088.21023037,0.00021627,2]
[381076220,1756004849120,-2400.0,0.00025,2]
[381076221,1756004849140,-1745.14703248,0.00025079,10]
[381076222,1756004849160,-461.85009533,0.00025678,2]
[381076223,1756004849181,-180.62999217,0.00025778,2]
[381076224,1756004849201,-180.6915355,0.00026184,2]
[381076225,1756004849225,-1088.21023037,0.00026806,6]
[381076226,1756004849246,-1200.0,0.00026848,2]
[381076227,1756004849266,-1200.0,0.00026999,2]
[381076228,1756004849286,-529.17068775,0.00027,7]
[381076229,1756004849306,-1647.51517858,0.00027708,2]
[381076230,1756004849327,-1000.0,0.00027808,30]
[381076231,1756004849346,-1000.0,0.00027808,31]
[381076232,1756004849368,-1000.0,0.00027808,32]
[381076233,1756004849387,-1000.0,0.00027808,33]
[381076234,1756004849407,-1000.0,0.00027808,34]
[381076235,1756004849427,-1000.0,0.00027808,35]
[381076236,1756004849445,-683.71805681,0.00027808,36]
[381076238,1756005024182,1057.13417472,0.000199,2]
[381076239,1756005024592,1057.13417469,0.00021627,2]
[381076240,1756005025047,1057.13417469,0.00023353,2]
[381076241,1756005025208,1057.13417469,0.0002508,2]
[381076262,1756005037651,-1057.13417469,0.00026806,6]
[381076263,1756005037660,-300.0,0.00027807,2]
[381076264,1756005037670,-1200.0,0.00027807,2]
[381076265,1756005037679,-316.28194319,0.00027808,36]
[381076266,1756005037689,-1000.0,0.00027808,37]
[381076267,1756005037698,-1000.0,0.00027808,38]
[381076268,1756005037707,-1000.0,0.00027808,39]
[381076269,1756005037716,-1000.0,0.00027808,40]
[381076270,1756005037726,-1000.0,0.00027808,41]
[381076271,1756005037734,-1000.0,0.00027808,42]
[381076272,1756005037744,-1000.0,0.00027808,43]
[381076273,1756005037753,-1000.0,0.00027808,44]
[381076274,1756005037762,-1000.0,0.00027808,45]
[381076275,1756005037772,-1000.0,0.00027808,46]
[381076276,1756005037781,-1000.0,0.00027808,47]
[381076277,1756005037790,-1000.0,0.00027808,48]
[381076279,1756005037800,-1000.0,0.00027808,49]
[381076280,1756005037809,-1000.0,0.00027808,50]
[381076281,1756005037818,-1000.0,0.00027808,51]
[381076282,1756005037828,-1000.0,0.00027808,52]
[381076283,1756005037837,-351.33164361,0.00027808,53]
[381076284,1756005037847,-2486.25473419,0.00027836,2]
[381076285,1756005037857,-500.0,0.00027873,5]
[381076286,1756005037866,-6116.10297839,0.00027873,2]
[381076287,1756005037875,-298.51573181,0.0002793,2]
[381076288,1756005037885,-686.04201658,0.0002793,2]
[381076289,1756005037894,-250.0,0.0002793,2]
[381076290,1756005037903,-250.0,0.0002793,2]
[381076291,1756005037912,-250.0,0.0002793,2]
[381076292,1756005037921,-250.0,0.0002793,2]
[381076293,1756005037930,-250.0,0.0002793,2]
[381076294,1756005037939,-250.0,0.0002793,2]
[381076295,1756005037948,-250.0,0.0002793,2]
[381076296,1756005037958,-250.0,0.0002793,2]
[381076297,1756005037967,-250.0,0.0002793,2]
[381076298,1756005037976,-250.0,0.0002793,2]
[381076299,1756005037984,-250.0,0.0002793,2]
[381076300,1756005037994,-404.62218748,0.00027936,2]
[381076301,1756005038003,-500.0,0.00027936,2]
[381076302,1756005038012,-500.0,0.00027936,2]
[381076303,1756005038022,-500.0,0.00027936,2]
[381076304,1756005038031,-500.0,0.00027936,2]
[381076305,1756005038039,-435.07979176,0.00027936,2]
[381076306,1756005038049,-500.0,0.00027936,2]
[381076307,1756005038058,-208.06942241,0.00027936,2]
[381076308,1756005038067,-78384.2164846,0.00027937,2]
[381076309,1756005038077,-4029.7079444,0.00027937,2]
[381076310,1756005038086,-363.63,0.00027937,3]
[381076311,1756005038096,-181.82,0.00027937,3]
[381076312,1756005038105,-174.9,0.00027937,3]
[381076313,1756005038114,-524.71,0.00027937,3]
[381076314,1756005038123,-180.81645994,0.00027946,2]
[381076315,1756005038132,-370000.0,0.00027947,2]
[381076316,1756005038142,-379.56239598,0.00027973,5]
[381076317,1756005038152,-542.85161833,0.00027973,5]
[381076318,1756005038162,-500.0,0.00027973,5]
[381076319,1756005038171,-503.56203781,0.00027973,5]
[381076320,1756005038180,-501.41813969,0.00027973,5]
[381076321,1756005038190,-278.89879357,0.00027973,5]
[381076322,1756005038199,-503.78049959,0.00027973,5]
[381076323,1756005038208,-506.86928077,0.00027973,5]
[381076324,1756005038218,-9798.02706058,0.0002799,2]
[381076325,1756005038227,-503.71349305,0.0002799,2]
[381076326,1756005038236,-169.82,0.00028,7]
[381076327,1756005038245,-8426.67,0.00028,2]
[381076328,1756005038254,-844.67759735,0.00028,7]
[381076329,1756005038266,-199.0,0.00028155,120]
[381076330,1756005038276,-217.07852671,0.00028177,2]
[381076331,1756005038285,-376.22310801,0.00028193,2]
[381076332,1756005038294,-3000.0,0.000284,2]
[381076333,1756005038304,-3000.0,0.0002841,2]
[381076334,1756005038313,-5298.891816,0.0002842,2]
[381076335,1756005038322,-1002.53922892,0.00028421,5]
[381076336,1756005038331,-1057.13417469,0.00028533,10]
[381076337,1756005038343,-500.0,0.00028542,5]
[381076338,1756005038352,-500.0,0.00028542,5]
[381076339,1756005038362,-1000.0,0.000288,18]
[381076340,1756005038371,-151.0,0.00029031,7]
[381076341,1756005038380,-1010.71548486,0.0002909,5]
[381076342,1756005038389,-1000.0,0.000292,20]
[381076343,1756005038399,-727.26,0.00029307,3]
[381076344,1756005038408,-363.64,0.00029307,3]
[381076345,1756005038417,-349.8,0.00029307,3]
[381076346,1756005038426,-173.8321754,0.00029318,2]
[381076347,1756005038435,-151.0,0.00029318,7]
[381076348,1756005038444,-151.0,0.00029318,7]
[381076349,1756005038454,-151.0,0.00029318,7]
[381076350,1756005038463,-151.321096,0.00029318,7]
[381076351,1756005038472,-158.856935,0.00029318,7]
[381076352,1756005038482,-151.0,0.00029318,7]
[381076353,1756005038491,-151.0,0.00029318,7]
[381076354,1756005038500,-151.0,0.00029318,7]
[381076355,1756005038509,-151.0,0.00029318,7]
[381076356,1756005038519,-151.0,0.00029318,7]
[381076357,1756005038528,-189.004796,0.00029318,7]
[381076358,1756005038537,-154.727511,0.00029318,7]
[381076359,1756005038546,-151.0,0.00029318,7]
[381076360,1756005038556,-151.0,0.00029318,7]
[381076361,1756005038566,-151.0,0.00029318,7]
[381076362,1756005038575,-151.0,0.00029318,7]
[381076363,1756005038584,-151.0,0.00029318,7]
[381076364,1756005038594,-151.0,0.00029318,7]
[381076365,1756005038603,-151.0,0.00029318,7]
[381076366,1756005038612,-193.431963,0.00029318,7]
[381076367,1756005038621,-193.431963,0.00029318,7]
[381076368,1756005038631,-193.431963,0.00029318,7]
[381076369,1756005038641,-193.431963,0.00029318,7]
[381076370,1756005038650,-151.0,0.00029318,7]
[381076371,1756005038659,-151.0,0.00029318,7]
[381076372,1756005038669,-151.0,0.00029318,7]
[381076373,1756005038678,-151.0,0.00029318,7]
[381076374,1756005038687,-151.0,0.00029318,7]
[381076375,1756005038696,-163.19812,0.00029318,7]
[381076376,1756005038705,-151.0,0.00029318,7]
[381076377,1756005038714,-9798.02706058,0.00029367,2]
[381076378,1756005038723,-503.71349305,0.00029367,2]
[381076379,1756005038733,-151.204887,0.00029367,7]
[381076380,1756005038743,-449.8032533,0.00029377,2]
[381076381,1756005038752,-159.52044786,0.000294,30]
[381076382,1756005038761,-693478.10232245,0.00029415,20]
[381076383,1756005038799,-75479.26075078,0.00029415,20]
[381076384,1756005038810,-2755.28152188,0.00029415,20]
[381076385,1756005038825,-398.73,0.00029415,20]
[381076386,1756005038836,-5513.32039461,0.00029415,20]
[381076405,1756005039967,-211.61588258,0.00029415,20]
[381076444,1756005042991,-79007.88444665,0.00027836,2]
[381076460,1756005043180,-12636.32093101,0.00027836,2]
[381076464,1756005044881,1791.98246194,0.00025,3]
[381076488,1756005045928,-14164.19885873,0.00027836,2]
[381077064,1756005053416,5000.0,0.00025,3]
[381077065,1756005068815,5000.0,0.00025,3]
[381077066,1756005086052,1139.56856173,0.00025,3]
[381077067,1756005086090,3860.43143827,0.00025,3]
[381077068,1756005121305,4492.38523842,0.00023005,2]
[381077069,1756005121978,-324.12534728,0.00023005,2]
[381077070,1756005124716,-178.00481879,0.00023005,2]
[381077071,1756005126730,-5.48459551,0.00023005,2]
[381077072,1756005130564,623.52375022,0.00025,3]
[381077073,1756005182466,492.5565,0.00029411,30]
[381077074,1756005197204,1233.51689191,0.000199,2]
[381077075,1756005198010,1233.51689172,0.00021627,2]
[381077076,1756005198064,-167.13881004,0.00023353,2]
[381077077,1756005200193,-167.71874772,0.00023353,2]
[381077078,1756005201756,-247.94204768,0.00023353,2]
[381077079,1756005206145,5000.0,0.00025,3]
[381077080,1756005207621,-206.51508165,0.00023353,2]
[381077081,1756005209149,-217.8193546,0.00023353,2]
[381077082,1756005212864,-200.0,0.00023353,2]
[381077083,1756005215000,-26.38285003,0.00023353,2]
[381077084,1756005222378,1212.6186372,0.00025,3]
[381077085,1756005248356,160.0,0.0002,7]
[381077086,1756005309397,-205.50378591,0.00023005,2]
[381077087,1756005313122,-274.37836369,0.00023005,2]
[381077088,1756005315420,-231.88663594,0.00022775,2]
[381077089,1756005315441,-68.11336406,0.00023005,2]
[381077090,1756005316961,-214.43724243,0.00023005,2]
[381077091,1756005319246,-156.15012828,0.00023005,2]
[381077092,1756005321120,-176.43113628,0.00023005,2]
[381077093,1756005323148,-208.13883761,0.00023005,2]
[381077094,1756005375335,1105.7450196,0.000199,2]
[381077095,1756005375797,1105.74501936,0.00021627,2]
[381077096,1756005376394,-179.11559908,0.00023353,2]
[381077097,1756005379531,-152.0,0.00023353,2]
[381077098,1756005382509,-186.15682727,0.00023353,2]
[381077099,1756005384642,-386.60803532,0.00023353,2]
[381077100,1756005387849,-201.86455769,0.00023353,2]
[381077101,1756005523927,1910.04798164,0.00025,3]
[381077102,1756005545091,1006.31260386,0.000199,2]
[381077103,1756005545700,1006.31260364,0.00021627,2]
[381077104,1756005546592,-220.0,0.00023353,2]
[381077105,1756005548267,-260.76842805,0.00023353,2]
[381077106,1756005552037,-525.54417559,0.00023353,2]
[381077107,1756005554992,357.20711143,0.00025,3]
[381077108,1756005571639,481.59239164,0.00025,3]
[381077109,1756005713470,940.14087341,0.000199,2]
[381077110,1756005713874,940.14087324,0.00021627,2]
[381077111,1756005715330,-309.42071946,0.00023353,2]
[381077112,1756005717989,-228.062631,0.00023353,2]
[381077113,1756005719525,-237.54165251,0.00023353,2]
[381077114,1756005721102,5000.0,0.00025,3]
[381077115,1756005723362,-165.11587027,0.00023353,2]
[381077116,1756005737144,275.02500297,0.00025,3]
[381077118,1756005880369,846.12678609,0.000199,2]
[381077119,1756005881179,846.12678591,0.00021627,2]
[381077120,1756005881501,-274.99922146,0.00023353,2]
[381077121,1756005884678,-328.90519694,0.00023353,2]
[381077122,1756005885638,440.11509173,0.00025,3]
[381077123,1756005890132,-242.22236751,0.00023353,2]
[381077124,1756005901885,625.35420258,0.00025,3]
[381077125,1756005994118,-153.41908181,0.0002366,2]
[381077129,1756006043081,-50.13144653,0.0002366,2]
[381077130,1756006043100,-153.67403753,0.00024,2]
[381077131,1756006043119,-656.114763,0.00024327,2]
[381077132,1756006043139,-169.08484904,0.0002498,2]
[381077133,1756006043162,-846.12678591,0.0002508,2]
[381077134,1756006043182,-171.74668359,0.00025775,2]
[381077135,1756006053766,733.30988118,0.000199,2]
[381077136,1756006054217,733.30988112,0.00021627,2]
[381077137,1756006055810,-276.95535707,0.00023353,2]
[381077138,1756006058018,-210.87415587,0.00023353,2]
[381077139,1756006060011,-226.10928934,0.00023353,2]
[381077140,1756006062718,-19.37107884,0.00023353,2]
[381077141,1756006066101,4291.47365779,0.00025,3]
[381077142,1756006069559,11871.05353718,0.00018,2]
[381077143,1756006069581,4156.82260034,0.00018,2]
[381077144,1756006073660,2196.81554541,0.00018,2]
[381077145,1756006081607,4179.88890469,0.00025,3]
[381077146,1756006093230,417.12032045,0.00010618,2]
[381077147,1756006095127,11436.90349752,0.000125,2]
[381077148,1756006108944,284.04109124,0.0001,2]
[381077149,1756006109860,178.11564143,0.00022,2]
[381077150,1756006109883,176.87288749,0.00022,2]
[381077151,1756006113554,16958.85231563,0.00017,2]
[381077152,1756006121244,978.98813247,0.0002,2]
[381077153,1756006122489,1218.06295476,0.00021,2]
[381077154,1756006123291,203.32195472,0.00021,2]
[381077155,1756006123683,1972.19869997,0.000215,2]
[381077156,1756006123704,7478.54234992,0.000215,2]
[381077157,1756006125318,6240.42955553,0.0002938,30]
[381077158,1756006125675,9176.51749522,0.00019063,2]
[381077159,1756006144709,-243.41608393,0.00022275,2]
[381077165,1756006147964,-215.79911338,0.00022275,2]
[381077166,1756006149551,-331.22379702,0.00022275,2]
[381077167,1756006153849,-249.29737897,0.00022275,2]
[381077168,1756006155601,-369.5443038,0.00022275,2]
[381077169,1756006158268,-179.001075,0.00022275,2]
[381077170,1756006161041,-204.1853233,0.00022275,2]
[381077171,1756006164308,-10.26991797,0.00022275,2]
[381077172,1756006164328,-326.64996986,0.000225,2]
[381077173,1756006165831,-158.66001389,0.000225,2]
[381077174,1756006168160,-204.18532328,0.000224,2]
[381077175,1756006170124,-59.03928639,0.000224,2]
[381077176,1756006170148,-248.84143475,0.000225,2]
[381077177,1756006172097,-278.7982913,0.000225,2]
[381077178,1756006172118,-211.2017087,0.000226,2]
[381077179,1756006172819,-97.7982913,0.000226,2]
[381077180,1756006172844,-198.40117915,0.00022999,2]
[381077181,1756006174872,-101.59882085,0.00022999,2]
[381077182,1756006174895,-156.07722586,0.00023,2]
[381077183,1756006176394,-284.95199239,0.00023,2]
[381077184,1756006180320,-152.0,0.00023,2]
[381077185,1756006182662,-216.1680267,0.00023,2]
[381077186,1756006184701,-318.09231369,0.00023,2]
[381077187,1756006187380,-167.0124152,0.000229,2]
[381077188,1756006190158,-5.21630958,0.000229,2]
[381077189,1756006190179,-167.53227266,0.00023,2]
[381077190,1756006192319,-221.07467357,0.00023,2]
[381077191,1756006194396,-180.82409839,0.00023,2]
[381077192,1756006196616,-273.55022294,0.00023,2]
[381077193,1756006198635,-33.46546031,0.00023,2]
[381077194,1756006198656,-371.0150287,0.00023,2]
[381077195,1756006200096,-205.30750649,0.00023,2]
[381077196,1756006202225,-247.54462276,0.00023,2]
[381077197,1756006205315,-251.30435963,0.00022999,2]
[381077198,1756006207515,-48.69564037,0.00022999,2]
[381077199,1756006207536,-342.06623915,0.00023,2]
[381077200,1756006209693,-459.58976445,0.00023,2]
[381077201,1756006212506,-534.79767303,0.00023,2]
[381077202,1756006212528,-9.07190345,0.00023,2]
[381077203,1756006214333,-226.55078086,0.00023,2]
[381077204,1756006220450,759.92260452,0.000199,2]
[381077205,1756006222826,-297.38987945,0.00023,2]
[381077206,1756006226988,-376.96693533,0.00023,2]
[381077207,1756006229899,-308.25049195,0.00023,2]
[381077210,1756006232042,-204.48454998,0.00023,2]
[381077211,1756006232053,-759.92260444,0.00023353,2]
[381077212,1756006232064,-1000.0,0.000235,2]
[381077213,1756006232075,-1200.0,0.00024649,2]
[381077214,1756006232087,-8954.48192462,0.0002465,2]
[381077215,1756006232100,-468.48010978,0.00024774,2]
[381077216,1756006232111,-481.24080212,0.00024774,2]
[381077218,1756006232123,-820.11109531,0.00025,3]
[381077221,1756006232134,-10000.01,0.00025,2]
[381077223,1756006232150,-12625.8319398,0.0002504,2]
[381077225,1756006232161,-759.92260444,0.0002508,2]
[381077227,1756006232172,-220.0,0.00025576,3]
[381077228,1756006232183,-307.34195513,0.00025775,2]
[381077229,1756006232193,-236.9512649,0.00025982,2]
[381077230,1756006232204,-200.0,0.00026104,15]
[381077231,1756006232215,-1168.7130858,0.00026573,2]
[381077232,1756006232226,-214.19662453,0.00026674,2]
[381077233,1756006232237,-759.92260444,0.00026806,6]
[381077234,1756006232248,-1430.0,0.00026834,2]
[381077235,1756006232260,-6394.37282767,0.00026845,2]
[381077236,1756006232272,-1200.0,0.00026846,2]
[381077237,1756006232284,-414.49,0.00027,7]
[381077238,1756006232295,-2618.2481025,0.00027066,2]
[381077239,1756006232306,-2715.12328229,0.00027121,2]
[381077240,1756006232317,-2815.58284374,0.00027176,2]
[381077241,1756006232328,-2919.75940895,0.00027231,2]
[381077242,1756006232340,-3027.79050709,0.00027286,2]
[381077243,1756006232351,-500.0,0.000273,5]
[381077244,1756006232362,-601.26806793,0.00027341,2]
[381077245,1756006232381,-2538.55068792,0.00027341,2]
[381077246,1756006232392,-300.0,0.00027381,20]
[381077247,1756006232404,-300.0,0.00027381,20]
[381077248,1756006232414,-300.0,0.00027381,20]
[381077249,1756006232426,-300.0,0.00027381,20]
[381077250,1756006232437,-300.0,0.00027381,20]
[381077251,1756006232449,-300.0,0.00027381,20]
[381077252,1756006232460,-300.0,0.00027381,20]
[381077253,1756006232471,-300.0,0.00027381,20]
[381077254,1756006232482,-300.0,0.00027381,20]
[381077255,1756006232492,-3255.99204981,0.00027396,2]
[381077256,1756006232505,-3376.46375566,0.00027451,2]
[381077257,1756006232515,-3501.39291462,0.00027506,2]
[381077258,1756006232526,-3630.94445246,0.00027561,2]
[381077259,1756006232538,-3765.2893972,0.00027616,2]
[381077260,1756006232548,-168.0,0.0002765,2]
[381077261,1756006232559,-210.44381327,0.000277,2]
[381077262,1756006232569,-209.82302986,0.00027707,2]
[381077263,1756006232580,-536.72412546,0.00027756,2]
[381077264,1756006232590,-2522.54140753,0.00027756,2]
[381077265,1756006232607,-1327.31678231,0.00027756,2]
[381077272,1756006237872,-199.0,0.00026749,20]
[381077274,1756006237882,-270.56442131,0.00027065,2]
[381077276,1756006237891,-3886.424662,0.00027756,2]
[381077278,1756006237900,-160.0,0.00027772,2]
[381077280,1756006237910,-192.64949022,0.00027803,2]
[381077281,1756006237920,-363.15696263,0.00027803,2]
[381077282,1756006237931,-151.0,0.00027803,2]
[381077283,1756006237941,-151.0,0.00027803,2]
[381077285,1756006237950,-500.0,0.00027803,2]
[381077287,1756006237959,-209.40437684,0.00027803,2]
[381077289,1756006237968,-151.0,0.00027803,2]
[381077291,1756006237978,-151.0,0.00027803,2]
[381077293,1756006237988,-500.0,0.00027803,2]
[381077295,1756006237998,-151.0,0.00027803,2]
[381077297,1756006238008,-522.31568145,0.00027803,2]
[381077299,1756006238016,-151.0,0.00027803,2]
[381077300,1756006238025,-151.0,0.00027803,2]
[381077301,1756006238034,-151.0,0.00027803,2]
[381077302,1756006238044,-151.0,0.00027803,2]
[381077303,1756006238053,-154.40361834,0.00027803,2]
[381077304,1756006238063,-250.0,0.00027803,2]
[381077305,1756006238073,-250.0,0.00027803,2]
[381077306,1756006238082,-250.0,0.00027803,2]
[381077307,1756006238091,-250.0,0.00027803,2]
[381077308,1756006238100,-250.0,0.00027803,2]
[381077309,1756006238110,-250.0,0.00027803,2]
[381077310,1756006238119,-250.0,0.00027803,2]
[381077311,1756006238128,-250.0,0.00027803,2]
[381077312,1756006238137,-250.0,0.00027803,2]
[381077313,1756006238146,-250.0,0.00027803,2]
[381077314,1756006238155,-250.0,0.00027803,2]
[381077315,1756006238165,-308.00008684,0.00027825,2]
[381077316,1756006238175,-32852.892196,0.00027826,2]
[381077317,1756006238184,-1259.2837326,0.00027826,2]
[381077318,1756006238193,-1136.11,0.00027832,6]
[381077319,1756006238202,-264191.59576361,0.00027836,2]
[381077320,1756006238211,-500.0,0.00027873,5]
[381077321,1756006238220,-500.0,0.00027873,5]
[381077322,1756006238229,-500.0,0.00027873,5]
[381077323,1756006238239,-500.0,0.00027873,5]
[381077324,1756006238248,-500.0,0.00027873,5]
[381077325,1756006238258,-500.0,0.00027873,5]
[381077326,1756006238269,-500.0,0.00027873,5]
[381077327,1756006238278,-500.0,0.00027873,5]
[381077328,1756006238288,-506.63223724,0.00027873,5]
[381077329,1756006238298,-160.0,0.00027893,2]
[381077330,1756006238307,-221.27,0.000279,7]
[381077331,1756006238316,-12698.53451425,0.00027942,2]
[381077332,1756006238326,-215.99145658,0.00027964,2]
[381077333,1756006238335,-217.07852671,0.00028019,2]
[381077334,1756006238344,-376.22310801,0.00028019,2]
[381077335,1756006238353,-168.0,0.00028034,7]
[381077336,1756006238362,-175.0,0.00028044,2]
[381077337,1756006238371,-6570.57843919,0.00028066,2]
[381077338,1756006238381,-251.85674652,0.00028066,2]
[381077339,1756006238390,-168.0,0.0002808,2]
[381077340,1756006238400,-536.72412546,0.00028137,2]
[381077341,1756006238409,-168.0,0.00028153,2]
[381077342,1756006238418,-168.0,0.00028231,2]
[381077343,1756006238427,-168.0,0.00028237,2]
[381077344,1756006238437,-175.0,0.0002829,7]
[381077345,1756006238446,-217.15233878,0.00028351,2]
[381077346,1756006238455,-159.629282,0.00028367,2]
[381077347,1756006238464,-331.19632309,0.00028367,2]
[381077348,1756006238474,-1000.0,0.00028421,5]
[381077349,1756006238483,-1000.0,0.00028421,5]
[381077350,1756006238492,-1000.0,0.00028421,5]
[381077351,1756006238501,-626.09121599,0.00028421,5]
[381077352,1756006238511,-1000.0,0.00028421,5]
[381077353,1756006238520,-508.20269858,0.00028421,5]
[381077354,1756006238529,-260.0,0.00028441,2]
[381077355,1756006238538,-168.0,0.00028441,2]
[381077356,1756006238547,-168.0,0.0002847,2]
[381077357,1756006238557,-536.72412546,0.00028518,2]
[381077358,1756006238566,-7736.28285183,0.00028528,2]
[381077359,1756006238576,-759.92260444,0.00028533,10]
[381077360,1756006238585,-168.0,0.00028816,7]
[381077361,1756006238595,-168.0,0.00028888,2]
[381077362,1756006238604,-536.72412546,0.00028899,2]
[381077363,1756006238613,-193.02482946,0.00028899,2]
[381077364,1756006238622,-1500.0,0.00028968,5]
[381077365,1756006238631,-1356.90008863,0.00028968,5]
[381077366,1756006238640,-1500.0,0.00028968,5]
[381077367,1756006238649,-1500.0,0.00028968,5]
[381077368,1756006238659,-360.0,0.00028989,2]
[381077369,1756006238668,-160.0,0.00029,10]
[381077370,1756006238678,-394.0,0.00029028,2]
[381077371,1756006238688,-151.42884223,0.00029031,7]
[381077372,1756006238697,-190.89222303,0.00029031,7]
[381077373,1756006238706,-151.0,0.00029031,7]
[381077374,1756006238715,-151.70519922,0.00029031,7]
[381077375,1756006238725,-151.0,0.00029031,7]
[381077376,1756006238734,-151.0,0.00029031,7]
[381077377,1756006238743,-151.0,0.00029031,7]
[381077378,1756006238752,-151.000001,0.00029031,7]
[381077379,1756006238762,-151.0,0.00029031,7]
[381077380,1756006238771,-151.3132723,0.00029031,7]
[381077381,1756006238780,-151.0,0.00029031,7]
[381077382,1756006238789,-151.0,0.00029031,7]
[381077383,1756006238799,-500.0,0.00029031,7]
[381077384,1756006238808,-151.0,0.00029031,7]
[381077385,1756006238817,-151.0,0.00029031,7]
[381077386,1756006238828,-151.0,0.00029031,7]
[381077387,1756006238837,-151.0,0.00029031,7]
[381077388,1756006238850,-151.0,0.00029031,7]
[381077389,1756006238859,-152.86277154,0.00029031,7]
[381077390,1756006238869,-151.0,0.00029031,7]
[381077391,1756006238879,-151.0,0.00029031,2]
[381077392,1756006238888,-151.0,0.00029031,7]
[381077393,1756006238905,-500.0,0.00029031,7]
[381077394,1756006238915,-151.0,0.00029031,7]
[381077395,1756006238925,-500.0,0.00029031,7]
[381077396,1756006238936,-151.24897978,0.00029031,7]
[381077397,1756006238946,-151.0,0.00029031,7]